fUSD/lending_fUSD_20240129
["ID","MTS","AMOUNT","RATE_DAILY","PERIOD"]
[312993214,1706570512549,-500.0,0.00052054,31]
[312993215,1706570512574,-767.98,0.00052054,31]
[312993216,1706570512601,-500.0,0.00052054,31]
[312993217,1706570512955,-1091.69,0.00052054,31]
[312993218,1706570512979,-500.0,0.00052054,31]
[312993219,1706570513005,-500.0,0.00052054,31]
[312993220,1706570513029,-1516.66,0.00052054,31]
[312993221,1706570513053,-1000.0,0.00052055,120]
[312993222,1706570513076,-1000.0,0.00052055,120]
[312993223,1706570513102,-521.57598546,0.00052055,120]
[312993224,1706570513127,-419.75,0.00052055,30]
[312993225,1706570513149,-341.14,0.00052055,30]
[312993226,1706570513173,-500.0,0.00052055,30]
[312993227,1706570513196,-150.0,0.00052067,30]
[312993228,1706570513220,-150.0,0.00052074,30]
[312993229,1706570513243,-150.0,0.00052076,30]
[312993230,1706570513268,-153.29755699,0.00052081,60]
[312993231,1706570513291,-166.53972707,0.00052091,60]
[312993232,1706570513315,-150.0,0.00052097,30]
[312993233,1706570513340,-151.013,0.00052098,58]
[312993234,1706570513366,-4071.19748891,0.000521,79]
[312993235,1706570513390,-157.83769784,0.00052114,60]
[312993236,1706570513413,-743.55,0.00052137,30]
[312993237,1706570513438,-150.0,0.00052143,30]
[312993238,1706570513462,-150.52477514,0.0005218,60]
[312993239,1706570513486,-150.0,0.00052198,120]
[312993240,1706570513511,-151.013,0.00052198,59]
[312993241,1706570513535,-4071.19748891,0.000522,79]
[312993242,1706570513559,-154.47780883,0.00052208,30]
[312993243,1706570513583,-150.0,0.00052213,30]
[312993244,1706570513607,-150.52477514,0.00052236,60]
[312993245,1706570513635,-717.81372888,0.00052238,120]
[312993246,1706570513658,-150.0,0.00052248,30]
[312993247,1706570513682,-150.0,0.00052264,30]
[312993248,1706570513707,-150.0,0.00052275,30]
[312993249,1706570513732,-150.0,0.00052283,30]
[312993250,1706570513757,-151.013,0.00052298,59]
[312993251,1706570513783,-4071.19748891,0.000523,80]
[312993252,1706570513807,-500.0,0.00052328,31]
[312993253,1706570513832,-500.0,0.00052328,31]
[312993254,1706570513856,-540.3318387,0.00052328,31]
[312993255,1706570513883,-500.0,0.00052328,31]
[312993256,1706570513907,-500.0,0.00052328,31]
[312993257,1706570513931,-647.22679554,0.00052328,31]
[312993258,1706570513956,-500.0,0.00052328,31]
[312993259,1706570513981,-500.0,0.00052328,31]
[312993260,1706570514007,-500.0,0.00052328,31]
[312993261,1706570514031,-500.0,0.00052328,31]
[312993262,1706570514053,-500.0,0.00052328,31]
[312993263,1706570514076,-592.14317347,0.00052328,31]
[312993264,1706570514102,-500.0,0.00052328,31]
[312993265,1706570514126,-500.0,0.00052328,31]
[312993266,1706570514150,-500.0,0.00052328,31]
[312993267,1706570514174,-500.0,0.00052328,31]
[312993268,1706570514198,-500.0,0.00052328,31]
[312993269,1706570514222,-500.0,0.00052328,31]
[312993270,1706570514245,-500.0,0.00052328,31]
[312993271,1706570514270,-500.0,0.00052328,31]
[312993272,1706570514293,-500.0,0.00052328,31]
[312993273,1706570514317,-512.20740692,0.00052328,31]
[312993274,1706570514341,-500.0,0.00052328,31]
[312993275,1706570514366,-500.0,0.00052328,31]
[312993276,1706570514389,-500.0,0.00052328,31]
[312993277,1706570514413,-500.0,0.00052328,31]
[312993278,1706570514438,-500.0,0.00052328,31]
[312993279,1706570514461,-500.0,0.00052328,31]
[312993280,1706570514485,-500.0,0.00052328,31]
[312993281,1706570514509,-500.0,0.00052328,31]
[312993282,1706570514533,-500.0,0.00052328,31]
[312993283,1706570514557,-500.0,0.00052328,31]
[312993284,1706570514582,-500.0,0.00052328,31]
[312993285,1706570514605,-500.0,0.00052328,31]
[312993286,1706570514630,-500.0,0.00052328,31]
[312993287,1706570514656,-500.0,0.00052328,31]
[312993288,1706570514683,-500.0,0.00052328,31]
[312993289,1706570514707,-500.0,0.00052328,31]
[312993290,1706570514732,-591.27519891,0.00052328,31]
[312993291,1706570514755,-500.0,0.00052328,31]
[312993292,1706570514779,-270.10599609,0.00052328,31]
[312993293,1706570514803,-1000.0,0.00052328,31]
[312993294,1706570514827,-500.0,0.00052328,31]
[312993295,1706570514851,-500.0,0.00052328,31]
[312993296,1706570514878,-340.87863056,0.00052328,31]
[312993297,1706570514902,-500.0,0.00052328,31]
[312993298,1706570514927,-500.0,0.00052328,31]
[312993299,1706570514951,-500.0,0.00052328,31]
[312993300,1706570514977,-162.02135621,0.00052328,31]
[312993301,1706570515008,-500.0,0.00052328,31]
[312993302,1706570515033,-500.0,0.00052328,31]
[312993303,1706570515059,-153.78267435,0.00052328,31]
[312993304,1706570515085,-348.02291417,0.00052328,31]
[312993305,1706570515110,-500.0,0.00052328,31]
[312993306,1706570515135,-500.0,0.00052328,31]
[312993307,1706570515158,-500.0,0.00052328,31]
[312993308,1706570515185,-3264.9,0.00052328,31]
[312993309,1706570515210,-500.0,0.00052328,31]
[312993310,1706570515241,-500.0,0.00052328,31]
[312993311,1706570515266,-500.0,0.00052328,31]
[312993312,1706570515291,-500.0,0.00052328,31]
[312993313,1706570515317,-500.0,0.00052328,31]
[312993314,1706570515342,-648.70007375,0.00052328,31]
[312993315,1706570515367,-200.0,0.00052328,31]
[312993316,1706570515537,-392.25219494,0.00052328,31]
[312993317,1706570515563,-227.18926692,0.00052328,31]
[312993318,1706570515589,-500.0,0.00052328,31]
[312993319,1706570515614,-500.0,0.00052328,31]
[312993320,1706570515640,-500.0,0.00052328,31]
[312993321,1706570515666,-500.0,0.00052328,31]
[312993322,1706570515691,-500.0,0.00052328,31]
[312993323,1706570515714,-500.0,0.00052328,31]
[312993324,1706570515738,-500.0,0.00052328,31]
[312993325,1706570515762,-500.0,0.00052328,31]
[312993326,1706570515786,-1126.68,0.00052328,31]
[312993327,1706570515810,-500.0,0.00052328,31]
[312993328,1706570515836,-500.0,0.00052328,31]
[312993329,1706570515861,-500.0,0.00052328,31]
[312993330,1706570515886,-581.15,0.00052328,31]
[312993331,1706570515909,-871.83,0.00052328,31]
[312993332,1706570515933,-500.0,0.00052328,31]
[312993333,1706570515957,-500.0,0.00052328,31]
[312993334,1706570515981,-500.0,0.00052328,31]
[312993335,1706570516009,-500.0,0.00052328,31]
[312993336,1706570516033,-500.0,0.00052328,31]
[312993337,1706570516058,-500.0,0.00052328,31]
[312993338,1706570516082,-582.0324857,0.00052328,31]
[312993339,1706570516108,-500.0,0.00052328,31]
[312993340,1706570516132,-500.0,0.00052328,31]
[312993341,1706570516157,-500.0,0.00052328,31]
[312993342,1706570516181,-500.0,0.00052328,31]
[312993343,1706570516206,-639.34661927,0.00052328,31]
[312993344,1706570516230,-500.0,0.00052328,31]
[312993345,1706570516255,-500.0,0.00052328,31]
[312993346,1706570516279,-500.0,0.00052328,31]
[312993347,1706570516304,-500.0,0.00052328,31]
[312993348,1706570516328,-500.0,0.00052328,31]
[312993349,1706570516352,-500.0,0.00052328,31]
[312993350,1706570516377,-500.0,0.00052328,31]
[312993351,1706570516402,-500.0,0.00052328,31]
[312993352,1706570516427,-590.24454403,0.00052328,31]
[312993353,1706570516452,-500.0,0.00052328,31]
[312993354,1706570516476,-500.0,0.00052328,31]
[312993355,1706570516501,-434.80093049,0.00052328,31]
[312993356,1706570516526,-1198.1,0.00052328,31]
[312993357,1706570516551,-165.39096842,0.00052328,31]
[312993358,1706570516577,-500.0,0.00052328,31]
[312993359,1706570516603,-500.0,0.00052328,31]
[312993360,1706570516632,-517.7372827,0.00052328,31]
[312993361,1706570516657,-184.25,0.00052328,31]
[312993362,1706570516682,-500.0,0.00052328,31]
[312993363,1706570516706,-500.0,0.00052328,31]
[312993364,1706570516736,-500.0,0.00052328,31]
[312993365,1706570516768,-500.0,0.00052328,31]
[312993366,1706570516793,-310.96874178,0.00052328,31]
[312993367,1706570516818,-500.0,0.00052328,31]
[312993368,1706570516843,-596.02944421,0.00052328,31]
[312993369,1706570516869,-500.0,0.00052328,31]
[312993370,1706570516894,-500.0,0.00052328,31]
[312993371,1706570516919,-525.71004361,0.00052328,31]
[312993372,1706570516944,-500.0,0.00052328,31]
[312993373,1706570516969,-500.0,0.00052328,31]
[312993374,1706570516994,-500.0,0.00052328,31]
[312993375,1706570517019,-500.0,0.00052328,31]
[312993376,1706570517044,-2888.91,0.00052328,31]
[312993377,1706570517069,-649.37813496,0.00052328,31]
[312993378,1706570517093,-6417.65,0.00052328,31]
[312993379,1706570517120,-500.0,0.00052328,31]
[312993380,1706570517144,-500.0,0.00052328,31]
[312993381,1706570517168,-500.0,0.00052328,31]
[312993382,1706570517193,-519.11238655,0.00052328,31]
[312993383,1706570517217,-546.29,0.00052328,31]
[312993384,1706570517241,-500.0,0.00052328,31]
[312993385,1706570517266,-500.0,0.00052328,31]
[312993386,1706570517289,-500.0,0.00052328,31]
[312993387,1706570517315,-500.0,0.00052328,31]
[312993388,1706570517340,-500.0,0.00052328,31]
[312993389,1706570517366,-500.0,0.00052328,31]
[312993390,1706570517392,-500.0,0.00052328,31]
[312993391,1706570517417,-500.0,0.00052328,31]
[312993392,1706570517441,-788.53,0.00052328,31]
[312993393,1706570517468,-724.61,0.00052328,31]
[312993394,1706570517494,-3154.0,0.00052328,31]
[312993395,1706570517520,-554.79,0.00052328,31]
[312993396,1706570517545,-500.0,0.00052328,31]
[312993397,1706570517569,-500.0,0.00052328,31]
[312993398,1706570517594,-933.06,0.00052328,31]
[312993399,1706570517621,-500.0,0.00052328,31]
[312993400,1706570517646,-396.26922871,0.00052328,31]
[312993401,1706570517672,-1886.53,0.00052328,31]
[312993402,1706570517696,-500.0,0.00052328,31]
[312993403,1706570517723,-825.04,0.00052328,31]
[312993404,1706570517747,-500.0,0.00052328,31]
[312993405,1706570517772,-730.97,0.00052328,31]
[312993406,1706570517796,-500.0,0.00052328,31]
[312993407,1706570517821,-500.0,0.00052328,31]
[312993408,1706570517848,-500.0,0.00052328,31]
[312993409,1706570517874,-832.22,0.00052328,31]
[312993410,1706570517898,-526.55,0.00052328,31]
[312993411,1706570517923,-500.0,0.00052328,31]
[312993412,1706570517947,-500.0,0.00052328,31]
[312993413,1706570517972,-1159.98,0.00052328,31]
[312993414,1706570517996,-718.09,0.00052328,31]
[312993415,1706570518024,-992.35,0.00052328,31]
[312993416,1706570518049,-1043.69,0.00052328,31]
[312993417,1706570518073,-500.0,0.00052328,31]
[312993418,1706570518100,-500.0,0.00052328,31]
[312993419,1706570518130,-500.0,0.00052328,31]
[312993420,1706570518155,-500.0,0.00052328,31]
[312993421,1706570518341,-706.4,0.00052328,31]
[312993422,1706570518368,-500.0,0.00052328,31]
[312993423,1706570518394,-3293.89,0.00052328,31]
[312993424,1706570518421,-500.0,0.00052328,31]
[312993425,1706570518447,-1608.19,0.00052328,31]
[312993426,1706570518472,-901.65,0.00052328,31]
[312993427,1706570518498,-500.0,0.00052328,31]
[312993428,1706570518523,-619.49,0.00052328,31]
[312993429,1706570518547,-500.0,0.00052328,31]
[312993430,1706570518571,-500.0,0.00052328,31]
[312993431,1706570518594,-576.61631571,0.00052328,31]
[312993432,1706570518620,-1222.86,0.00052328,31]
[312993433,1706570518646,-500.0,0.00052328,31]
[312993434,1706570518671,-340.20400287,0.00052328,31]
[312993435,1706570518697,-721.19,0.00052328,31]
[312993436,1706570518724,-2521.45,0.00052328,31]
[312993437,1706570518749,-500.0,0.00052328,31]
[312993438,1706570518773,-500.0,0.00052328,31]
[312993439,1706570518797,-5824.9,0.00052328,31]
[312993440,1706570518821,-500.0,0.00052328,31]
[312993441,1706570518845,-500.0,0.00052328,31]
[312993442,1706570518870,-3944.03,0.00052328,31]
[312993443,1706570518896,-319.79415568,0.00052328,31]
[312993444,1706570518923,-355.56915166,0.00052328,31]
[312993445,1706570518952,-500.0,0.00052328,31]
[312993446,1706570518979,-500.0,0.00052328,31]
[312993447,1706570519006,-500.0,0.00052328,31]
[312993448,1706570519033,-500.0,0.00052328,31]
[312993449,1706570519057,-500.0,0.00052328,31]
[312993450,1706570519083,-785.84,0.00052328,31]
[312993451,1706570519110,-500.0,0.00052328,31]
[312993452,1706570519138,-934.12,0.00052328,31]
[312993453,1706570519162,-692.27,0.00052328,31]
[312993454,1706570519188,-500.0,0.00052328,31]
[312993455,1706570519213,-500.0,0.00052328,31]
[312993456,1706570519244,-500.0,0.00052328,31]
[312993457,1706570519273,-1039.93,0.00052328,31]
[312993458,1706570519299,-500.0,0.00052328,31]
[312993459,1706570519327,-500.0,0.00052328,31]
[312993460,1706570519351,-339.93481671,0.00052328,31]
[312993461,1706570519375,-500.0,0.00052328,31]
[312993462,1706570519399,-930.22,0.00052328,31]
[312993463,1706570519423,-1008.74,0.00052328,31]
[312993464,1706570519447,-811.44,0.00052328,31]
[312993465,1706570519471,-500.0,0.00052328,31]
[312993466,1706570519495,-500.0,0.00052328,31]
[312993467,1706570519519,-500.0,0.00052328,31]
[312993468,1706570519543,-500.0,0.00052328,31]
[312993469,1706570519567,-500.0,0.00052328,31]
[312993470,1706570519591,-500.0,0.00052328,31]
[312993471,1706570519615,-675.28,0.00052328,31]
[312993472,1706570519643,-500.0,0.00052328,31]
[312993473,1706570519667,-500.0,0.00052328,31]
[312993474,1706570519692,-500.0,0.00052328,31]
[312993475,1706570519716,-1694.15,0.00052328,31]
[312993476,1706570519739,-500.0,0.00052328,31]
[312993477,1706570519763,-500.0,0.00052328,31]
[312993478,1706570519789,-500.0,0.00052328,31]
[312993479,1706570519813,-500.0,0.00052328,31]
[312993480,1706570519839,-1034.3,0.00052328,31]
[312993481,1706570519862,-1068.65,0.00052328,31]
[312993482,1706570519890,-2160.32,0.00052328,31]
[312993483,1706570519913,-1428.18,0.00052328,31]
[312993484,1706570519937,-500.0,0.00052328,31]
[312993485,1706570519963,-500.0,0.00052328,31]
[312993486,1706570519988,-939.7,0.00052328,31]
[312993487,1706570520016,-1714.01,0.00052328,31]
[312993488,1706570520040,-500.0,0.00052328,31]
[312993489,1706570520067,-500.0,0.00052328,31]
[312993490,1706570520091,-500.0,0.00052328,31]
[312993491,1706570520115,-578.93,0.00052328,31]
[312993492,1706570520142,-1149.03,0.00052328,31]
[312993493,1706570520167,-500.0,0.00052328,31]
[312993494,1706570520194,-500.0,0.00052328,31]
[312993495,1706570520218,-1525.02,0.00052328,31]
[312993496,1706570520245,-894.61,0.00052328,31]
[312993497,1706570520272,-500.0,0.00052328,31]
[312993498,1706570520297,-500.0,0.00052328,31]
[312993499,1706570520322,-379.6380477,0.00052328,31]
[312993500,1706570520346,-912.04,0.00052328,31]
[312993501,1706570520371,-533.63,0.00052328,31]
[312993502,1706570520395,-500.0,0.00052328,31]
[312993503,1706570520421,-2023.87,0.00052328,31]
[312993504,1706570520446,-500.0,0.00052328,31]
[312993505,1706570520471,-500.0,0.00052328,31]
[312993506,1706570520495,-500.0,0.00052328,31]
[312993507,1706570520520,-844.08,0.00052328,31]
[312993508,1706570520544,-804.61,0.00052328,31]
[312993509,1706570520567,-3052.72,0.00052328,31]
[312993510,1706570520591,-500.0,0.00052328,31]
[312993511,1706570520615,-416.3410767,0.00052328,31]
[312993512,1706570520640,-500.0,0.00052328,31]
[312993513,1706570520665,-551.34352821,0.00052328,31]
[312993514,1706570520689,-500.0,0.00052328,31]
[312993515,1706570520712,-480.54436123,0.00052328,31]
[312993516,1706570520737,-500.0,0.00052328,31]
[312993517,1706570520763,-523.7,0.00052328,31]
[312993518,1706570520787,-1400.06,0.00052328,31]
[312993519,1706570520811,-677.43,0.00052328,31]
[312993520,1706570520834,-536.35,0.00052328,31]
[312993521,1706570520858,-1969.2,0.00052328,31]
[312993522,1706570520883,-500.0,0.00052328,31]
[312993523,1706570520907,-500.0,0.00052328,31]
[312993524,1706570521061,-457.18484093,0.00052328,31]
[312993525,1706570521086,-1665.61,0.00052328,31]
[312993526,1706570521113,-906.89,0.00052328,31]
[312993527,1706570521137,-500.0,0.00052328,31]
[312993528,1706570521161,-500.0,0.00052328,31]
[312993529,1706570521185,-500.0,0.00052328,31]
[312993530,1706570521209,-500.0,0.00052328,31]
[312993531,1706570521233,-500.0,0.00052328,31]
[312993532,1706570521257,-500.0,0.00052328,31]
[312993533,1706570521281,-500.0,0.00052328,31]
[312993534,1706570521306,-3298.72,0.00052328,31]
[312993535,1706570521329,-1057.36,0.00052328,31]
[312993536,1706570521355,-754.04,0.00052328,31]
[312993537,1706570521379,-500.0,0.00052328,31]
[312993538,1706570521404,-500.0,0.00052328,31]
[312993539,1706570521429,-1279.7,0.00052328,31]
[312993540,1706570521454,-500.0,0.00052328,31]
[312993541,1706570521480,-1923.66,0.00052328,31]
[312993542,1706570521504,-1359.81,0.00052328,31]
[312993543,1706570521530,-500.0,0.00052328,31]
[312993544,1706570521553,-736.83,0.00052328,31]
[312993545,1706570521577,-500.0,0.00052328,31]
[312993546,1706570521600,-500.0,0.00052328,31]
[312993547,1706570521625,-500.0,0.00052328,31]
[312993548,1706570521649,-1152.35,0.00052328,31]
[312993549,1706570521676,-616.21795322,0.00052328,120]
[312993550,1706570521702,-500.0,0.00052328,31]
[312993551,1706570521726,-500.0,0.00052328,31]
[312993552,1706570521751,-500.0,0.00052328,31]
[312993553,1706570521776,-7569.77,0.00052328,31]
[312993554,1706570521801,-500.0,0.00052328,31]
[312993555,1706570521826,-500.0,0.00052328,31]
[312993556,1706570521852,-500.0,0.00052328,31]
[312993557,1706570521880,-500.0,0.00052328,31]
[312993558,1706570521904,-500.0,0.00052328,31]
[312993559,1706570521929,-500.0,0.00052328,31]
[312993560,1706570521953,-500.0,0.00052328,31]
[312993561,1706570521978,-1002.94,0.00052328,31]
[312993562,1706570522003,-1037.44,0.00052328,31]
[312993563,1706570522027,-500.0,0.00052328,31]
[312993564,1706570522052,-500.0,0.00052328,31]
[312993565,1706570522078,-1176.1,0.00052328,31]
[312993566,1706570522102,-500.0,0.00052328,31]
[312993567,1706570522128,-500.0,0.00052328,31]
[312993568,1706570522152,-1757.95,0.00052328,31]
[312993569,1706570522176,-500.0,0.00052328,31]
[312993570,1706570522201,-500.0,0.00052328,31]
[312993571,1706570522226,-500.0,0.00052328,31]
[312993572,1706570522253,-5853.49,0.00052328,31]
[312993573,1706570522277,-585.62,0.00052328,31]
[312993574,1706570522301,-500.0,0.00052328,31]
[312993575,1706570522326,-500.0,0.00052328,31]
[312993576,1706570522351,-185.85383834,0.00052328,31]
[312993577,1706570522376,-500.0,0.00052328,31]
[312993578,1706570522401,-1466.8,0.00052328,31]
[312993579,1706570522425,-500.0,0.00052328,31]
[312993580,1706570522450,-767.98,0.00052328,31]
[312993581,1706570522475,-500.0,0.00052328,31]
[312993582,1706570522500,-1091.69,0.00052328,31]
[312993583,1706570522525,-500.0,0.00052328,31]
[312993584,1706570522556,-500.0,0.00052328,31]
[312993585,1706570522582,-1516.66,0.00052328,31]
[312993586,1706570522606,-150.0,0.00052339,30]
[312993587,1706570522631,-150.0,0.00052353,30]
[312993588,1706570522656,-154.67281811,0.00052361,60]
[312993589,1706570522683,-680.84028131,0.00052372,30]
[312993590,1706570522709,-1593.99999165,0.00052384,60]
[312993591,1706570522736,-151.013,0.00052398,59]
[312993592,1706570522761,-4071.19748891,0.000524,80]
[312993593,1706570522795,-150.0,0.00052423,30]
[312993594,1706570522820,-195.96504941,0.00052438,120]
[312993595,1706570522846,-151.013,0.00052448,60]
[312993596,1706570522873,-456.99358793,0.00052448,60]
[312993597,1706570522899,-150.0,0.00052452,30]
[312993598,1706570522925,-150.0,0.00052476,30]
[312993599,1706570522951,-150.0,0.00052493,30]
[312993600,1706570522978,-1000000.0,0.000525,120]
[312993601,1706570523010,-149764.10333328,0.000525,120]
[312993602,1706570806777,-279.32997636,0.00021948,2]
[312993603,1706570806800,-253.18,0.00021949,2]
[312993604,1706570814817,-1779.29,0.00022155,2]
[312993605,1706570814839,-263.14,0.00022186,2]
[312993606,1706570820747,-250.0,0.00022249,2]
[312993607,1706570825671,-165.71,0.00022331,2]
[312993608,1706570825694,-2000.0,0.0002236,2]
[312993609,1706570825716,-150.0,0.0002236,2]
[312993610,1706570830688,-165.71,0.00022564,2]
[312993611,1706570840043,-664.39,0.00022649,2]
[312993612,1706570840063,-499.99,0.00022649,2]
[312993613,1706570840083,-161.05693893,0.00022696,2]
[312993614,1706570849635,-661.63700481,0.00022795,2]
[312993615,1706570849656,-150.0,0.00022796,2]
[312993616,1706570849676,-150.0,0.00022796,2]
[312993617,1706570849696,-1000.0,0.00022796,2]
[312993618,1706570849721,-165.71,0.00022796,2]
[312993619,1706570849741,-438.8111,0.00022797,2]
[312993620,1706570849763,-2174.24307589,0.00022798,2]
[312993621,1706570849787,-166.94701556,0.00022798,2]
[312993622,1706570849807,-160.37335377,0.00022798,2]
[312993623,1706570849828,-1283.36481659,0.00022798,2]
[312993647,1706571032220,-279.32997636,0.00022586,2]
[312993648,1706571032231,-1000.0,0.00022587,2]
[312993649,1706571032244,-62.20948622,0.00022668,2]
[312993650,1706571032258,-2759.79051378,0.00022668,2]
[312993651,1706571032267,-1000.0,0.00022779,2]
[312993652,1706571032277,-1283.36481659,0.00022797,2]
[312993653,1706571032287,-356.1578955,0.00022868,2]
[312993654,1706571032296,-360.84585383,0.00022877,2]
[312993655,1706571032306,-270.60491089,0.00022877,2]
[312993656,1706571032317,-150.0,0.00022877,2]
[312993657,1706571032326,-636.61505498,0.00022878,2]
[312993658,1706571032341,-395.76320725,0.00022878,2]
[312993659,1706571032369,-387.61028032,0.00022878,2]
[312993660,1706571032381,-655.60712406,0.00022878,2]
[312993661,1706571032398,-1553.15406574,0.00022878,2]
[312993662,1706571032408,-1401.52355342,0.00022878,2]
[312993663,1706571032424,-128254.98862169,0.00022878,2]
[312993664,1706571032433,-44840.22710838,0.00022879,2]
[312993665,1706571032444,-1716.26057879,0.00022879,2]
[312993666,1706571032456,-1809.88952973,0.00022879,2]
[312993667,1706571032467,-2147.15410892,0.00022879,2]
[312993668,1706571032478,-2339.38876042,0.00022879,2]
[312993669,1706571032500,-6510.59504121,0.00022879,2]
[312993670,1706571032516,-2013.91252975,0.00022879,2]
[312993671,1706571032529,-332.2789173,0.00022879,2]
[312993672,1706571032539,-21.84086039,0.00022879,2]
[312993673,1706571032550,-619.10457445,0.00022879,2]
[312993674,1706571032564,-359.05456516,0.00022879,2]
[312993675,1706571032574,-143.33507113,0.00022895,2]
[312993677,1706571032584,-1135.07599388,0.00022895,2]
[312993694,1706571038211,-276.69380035,0.00022795,2]
[312993695,1706571038223,-723.30619965,0.00022795,2]
[312993696,1706571038234,-3529.91303405,0.00022895,2]
[312993697,1706571038243,-4268.31,0.00022895,2]
[312993698,1706571038254,-904.10734136,0.00022896,2]
[312993699,1706571038263,-762.26,0.00022897,2]
[312993700,1706571038272,-1059333.89072855,0.00022897,2]
[312993701,1706571038281,-245000.0,0.00022898,2]
[312993702,1706571038291,-150.84349516,0.000229,2]
[312993703,1706571038301,-197.85923407,0.00022996,2]
[312993704,1706571038310,-760.31642859,0.00022997,2]
[312993705,1706571038320,-575.14805587,0.00022997,2]
[312993706,1706571038329,-165.71,0.00023029,2]
[312993707,1706571038338,-161.05693878,0.00023075,2]
[312993708,1706571038347,-165.71,0.00023262,2]
[312993709,1706571038356,-263.14,0.00023295,2]
[312993710,1706571038369,-161.05693878,0.00023454,2]
[312993711,1706571038378,-165.71,0.00023495,2]
[312993712,1706571038388,-300.0,0.00023543,2]
[312993713,1706571038398,-609.52,0.00023583,2]
[312993714,1706571038407,-1779.29,0.00023799,2]
[312993715,1706571038416,-161.05693878,0.00023833,2]
[312993716,1706571038426,-1514.19483785,0.00023962,2]
[312993717,1706571038435,-1514.19483785,0.00023962,2]
[312993718,1706571038445,-150.84349499,0.0002407,2]
[312993719,1706571038454,-161.05693878,0.00024213,2]
[312993720,1706571038463,-163.05,0.00024234,2]
[312993721,1706571038473,-2080.04,0.00024384,2]
[312993722,1706571038483,-2080.04,0.00024384,2]
[312993723,1706571038493,-263.14,0.00024404,2]
[312993724,1706571038502,-161.05693878,0.00024592,2]
[312993725,1706571038512,-250.0,0.00024658,2]
[312993726,1706571038521,-300.0,0.00024913,2]
[312993727,1706571038530,-161.05693878,0.00024971,2]
[312993728,1706571038539,-302.96573561,0.00025,2]
[312993729,1706571038549,-208.31498309,0.00025,2]
[312993730,1706571038559,-1249.5542374,0.00025,2]
[312993731,1706571038570,-575.867482,0.00025,2]
[312993732,1706571038578,-3011.67714353,0.00025,2]
[312993733,1706571038588,-167.43304946,0.00025,2]
[312993734,1706571038597,-210.0,0.00025165,2]
[312993735,1706571038607,-150.84349499,0.00025345,2]
[312993736,1706571038616,-161.05693878,0.0002535,2]
[312993737,1706571038625,-1000.0,0.0002541,2]
[312993738,1706571038635,-2174.24307584,0.00025416,2]
[312993739,1706571038644,-1779.29,0.00025443,2]
[312993740,1706571038654,-263.14,0.00025514,2]
[312993741,1706571038664,-161.05693878,0.00025729,2]
[312993742,1706571038673,-609.52,0.00025847,2]
[312993743,1706571038683,-161.05693878,0.00026108,2]
[312993744,1706571038693,-161.05693878,0.00026488,2]
[312993745,1706571038702,-150.84349499,0.00026621,2]
[312993746,1706571038711,-263.14,0.00026623,2]
[312993747,1706571038721,-161.05693878,0.00026867,2]
[312993748,1706571038730,-150.0,0.000269,2]
[312993749,1706571038740,-1283.36481658,0.00026912,3]
[312993750,1706571038750,-417.13678591,0.00027,2]
[312993751,1706571038759,-165.79,0.00027011,2]
[312993752,1706571038768,-1779.29,0.00027087,2]
[312993753,1706571038778,-161.05693878,0.00027246,2]